Cogmind - Beta 17 @@@ ROGUE MODE // 2026.07.23 @ 16:23:20 Player: Akl Result: Self-destructed Performance ------------- Evolutions (4) 2000 Regions Visited (10) 2000 Robots Destroyed (19) 95 Value Destroyed (487) 487 Prototype IDs (24) 480 Alien Tech Used (0) 0 Bonus (959) 959 TOTAL SCORE: 6021 Bonus ------- Follower Combat Kills 359 Aligned with FarCom 300 Met Imprinter 300 Cogmind --------- Core Integrity 709/850 Matter 294/300 Energy 80/100 System Corruption 0% Temperature Cool (12) Movement Flying (114) Ox1 Location -6/Zion Parts ------- > --- POWER (2) -------- (None) > --- PROPULSION (6) --- Xenon Bombardment Thruster Xenon Bombardment Thruster Xenon Bombardment Thruster > --- UTILITY (5) ------ Medium Storage Unit Visual Processing Unit Improved Terrain Scanner Targeting Computer Core Analyzer > --- WEAPON (2) ------- Heavy Battle Rifle Heavy Machine Gun > --- INVENTORY (10) --- VTOL Module Advanced Sensor Array Improved Targeting Computer Kinecellerator Makeshift Transmission Jammer Dynamic Insulation System Hacking Drone Bay Heavy Battle Rifle Grenade Launcher Improved Datajack Peak State ------------ > --- POWER ------------ Light Deuterium Engine Light Fission Core > --- PROPULSION ------- VTOL Module Cesium-ion Thruster Cesium-ion Thruster Xenon Bombardment Thruster Xenon Bombardment Thruster Xenon Bombardment Thruster > --- UTILITY ---------- Medium Storage Unit Visual Processing Unit Improved Terrain Scanner Targeting Computer Core Analyzer > --- WEAPON ----------- Heavy Battle Rifle Heavy Machine Gun > --- INVENTORY -------- VTOL Module Advanced Sensor Array Improved Targeting Computer Kinecellerator Weapon Cycler Makeshift Transmission Jammer Dynamic Insulation System Hacking Drone Bay Grenade Launcher Improved Datajack [Rating: 51] Favorites ----------- Power Light Ion Engine Engine Light Ion Engine Power Core Light Fission Core Propulsion Flight Unit Leg Aluminum Leg Hover Unit Gravmag System Flight Unit Flight Unit Utility Improved Terrain Scanner Device Improved Terrain Scanner Storage Small Storage Unit Processor Targeting Computer Hackware Authchip [Device] Protection Light Armor Plating Weapon Light Assault Rifle Energy Gun Small Laser Energy Cannon YOLO Cannon Ballistic Gun Light Assault Rifle Launcher Grenade Launcher Special Weapon Field Lobotomy Kit Build | -11 -10 -10 -10 -9 -8 -8 -7 -6 -6 -6 ------- Run | Yrd Mat Min Exi Min Mat Sto Fac Fac Low Zio Slots Evolved 8 | . . . . . 4 . 2 2 . . Power 1 | . . . . . . . . 1 . . Propulsion 4 | . . . . . 2 . 2 . . . Utility 3 | . . . . . 2 . . 1 . . Weapon . | . . . . . . . . . . . Parts Attached 61 | 5 5 4 4 4 5 12 13 4 2 3 Power 9 | . 1 . . 2 . 3 1 1 . 1 Engine 7 | . 1 . . 2 . 3 . 1 . . Core 2 | . . . . . . . 1 . . 1 Reactor . | . . . . . . . . . . . Propulsion 29 | 2 2 2 2 1 3 5 10 . 1 1 Treads . | . . . . . . . . . . . Leg 6 | 2 . . 2 . 1 1 . . . . Wheel . | . . . . . . . . . . . Hover 5 | . . 1 . . 2 1 1 . . . Flight 18 | . 2 1 . 1 . 3 9 . 1 1 Utility 13 | 1 1 2 . 1 2 2 2 2 . . Device 4 | 1 . 2 . . 1 . . . . . Storage 3 | . 1 . . . . . 1 1 . . Processor 3 | . . . . . 1 . 1 1 . . Hackware 1 | . . . . 1 . . . . . . Protection 2 | . . . . . . 2 . . . . Artifact . | . . . . . . . . . . . Weapon 10 | 2 1 . 2 . . 2 . 1 1 1 Energy Gun 1 | 1 . . . . . . . . . . Energy Cannon 1 | . . . 1 . . . . . . . Ballistic Gun 6 | 1 1 . . . . 2 . . 1 1 Ballistic Cannon . | . . . . . . . . . . . Launcher 1 | . . . . . . . . 1 . . Special Weapon 1 | . . . 1 . . . . . . . Impact Weapon . | . . . . . . . . . . . Slashing Weapon . | . . . . . . . . . . . Piercing Weapon . | . . . . . . . . . . . Special Melee Weapon . | . . . . . . . . . . . Unidentified Prototypes 4 | . . . 3 . . 1 . . . . Parts Lost 10 | . . . 1 1 . 1 . . 2 5 Power 4 | . . . 1 . . . . . 1 2 Propulsion 5 | . . . . . . 1 . . 1 3 Utility 1 | . . . . 1 . . . . . . Weapon . | . . . . . . . . . . . Highest Loss Streak 5 | . . . 1 1 . 1 . . 2 5 To Critical Strikes . | . . . . . . . . . . . Average Backups 7 | 2 5 7 8 4 5 7 7 7 9 10 Power . | . 1 1 1 . 1 . . . . . Propulsion . | . 2 2 2 . . . . . . 1 Utility 4 | . 1 2 3 2 2 3 4 5 6 6 Weapon 1 | 1 1 2 2 2 2 2 1 1 1 1 Tool/Special . | . . . . . . . . . . . Unused Backups 17 | . . . . . . 3 2 . . 12 Power 1 | . . . . . . 1 . . . . Propulsion . | . . . . . . . . . . . Utility 12 | . . . . . . 1 1 . . 10 Weapon 3 | . . . . . . 1 1 . . 1 Tool/Special 1 | . . . . . . . . . . 1 Average Slot Usage (%) 96 | . 93 100 98 95 81 97 97 99 93 98 Engine 8 | . 10 14 14 14 9 9 . 5 6 5 Core 2 | . . . . . . . 6 6 2 5 Leg 1 | . 5 . 3 1 3 . . . . . Hover 2 | . . . . . 4 15 . . . . Flight 30 | . 22 28 24 26 18 19 45 40 38 39 Device 9 | . 14 14 14 5 10 9 7 6 6 6 Storage 9 | . 10 14 14 14 9 9 7 6 6 6 Processor 9 | . . . . . 9 9 14 19 20 20 Protection 1 | . . . . . . 7 . . . . Ballistic Gun 18 | . 25 28 26 28 18 17 13 8 13 13 Peak Build Rating 51 | 7 9 9 44 26 19 24 40 43 44 51 Average Rating 25 | 3 8 8 10 8 14 20 32 42 42 49 On Entrance 19 | . 7 9 8 25 7 19 15 37 43 44 Avg Prop Armor Cover (%) 3 | 23 20 . . . 6 4 3 2 2 2 Naked Turns . | . . . . . . . . . . . Heaviest Build 32 | 3 11 11 18 11 13 25 17 27 27 32 Greatest Support 60 | 20 8 8 60 8 18 18 35 27 28 32 Greatest Overweight (x) 3 | . 1 1 2 1 1 3 . . . 1 Average Overweight (x) . | . . 1 . 1 . . . . . . Largest Inventory Capacity 15 | 5 8 8 8 8 8 8 15 10 10 10 Average Capacity 8 | 5 7 8 8 8 8 8 8 9 10 10 Most Carried 10 | 3 7 8 8 7 6 8 9 8 10 10 Average Carried 7 | 2 5 7 8 4 5 7 7 7 9 9 Final Capacity 10 | 5 8 8 8 8 8 8 8 10 10 10 Final Carried 10 | 3 7 8 8 7 6 8 8 8 10 10 Class Distribution -------------------- 59% | Scavenger-Mutant 19% | Scavenger-Scout 10% | Scavenger-Skirmisher 4% | Commander-Scout Dominant Class ---------------- Scavenger-Mutant | -10/Materials Scavenger-Mutant | -10/Mines Scavenger-Mutant | -10/Exiles Scavenger-Mutant | -9/Mines Scavenger-Skirmisher | -8/Materials Scavenger-Skirmisher | -8/Storage Scavenger-Scout | -7/Factory Scavenger-Scout | -6/Factory Scavenger-Sprinter | -6/Lower Caves Scavenger-Mutant | -6/Zion Resources | -11 -10 -10 -10 -9 -8 -8 -7 -6 -6 -6 ----------- Run | Yrd Mat Min Exi Min Mat Sto Fac Fac Low Zio Matter Collected 1173 | 256 65 46 36 65 . 213 251 103 88 50 Remotely . | . . . . . . . . . . . Salvage Created 716 | 92 121 . 2 . . 246 . 202 53 . Parts 39 | 4 9 . 1 . . 17 . 3 5 . Haulers Intercepted . | . . . . . . . . . . . Recyclers Shooed 3 | 1 1 . . . . 1 . . . . Parts Field Recycled . | . . . . . . . . . . . Retrieved Matter . | . . . . . . . . . . . Parts Self-Destructed 5 | . . . . . . . . . 5 . Prevented . | . . . . . . . . . . . Parts Restored . | . . . . . . . . . . . Kills | -11 -10 -10 -10 -9 -8 -8 -7 -6 -6 -6 ------- Run | Yrd Mat Min Exi Min Mat Sto Fac Fac Low Zio Combat Hostiles Destroyed 15 | . 3 . 1 2 . 3 . 4 2 . Guns 12 | . 3 . 1 2 . 3 . 1 2 . AOE 3 | . . . . . . . . 3 . . Classes Destroyed 8 | 2 1 . . 1 . 3 . 1 . . Worker 1 | . . . . . . 1 . . . . Tunneler 1 | 1 . . . . . . . . . . Recycler 4 | 1 1 . . . . 1 . 1 . . Swarmer 6 | . 3 . 1 . . . . . 2 . Grunt 4 | . . . . . . 1 . 3 . . Duelist 1 | . . . . . . . . 1 . . Sentry 2 | . . . . . . 2 . . . . Assembled 2 | . . . . 2 . . . . . . Best Kill Streak 5 | 1 3 . 1 1 . 3 . 5 2 . Combat Bots Only 4 | . 3 . 1 1 . 1 . 4 2 . Max Kills in Single Turn 2 | 1 1 . 1 1 . 1 . 2 1 . Gunslinging . | . . . . . . . . . . . Exploded 2 | . . . . . . . . 2 . . Melee . | . . . . . . . . . . . Uniques/NPCs Destroyed . | . . . . . . . . . . . Combat | -11 -10 -10 -10 -9 -8 -8 -7 -6 -6 -6 -------- Run | Yrd Mat Min Exi Min Mat Sto Fac Fac Low Zio Hostile Shots Fired 205 | . 18 . 47 4 . 30 . 7 27 72 Missed 67 | . 7 . 13 1 . 12 . 2 9 23 Hits 138 | . 11 . 34 3 . 18 . 5 18 49 Projectile 138 | . 11 . 34 3 . 18 . 5 18 49 Critical Strikes 4 | . . . 2 . . . . . . 2 Part Disruptions 2 | . . . . . . . . . . 2 Damage Taken 1785 | . 83 . 427 45 . 259 . 95 270 606 Core 283 | . 17 . 80 . . 45 . 18 51 72 Absorbed by Shields 2 | . . . . . . 2 . . . . Regen/Repaired (Parts) 294 | . . . . . . . 40 . . 254 Core Remaining (%) 88 | 100 . . . 61 . 91 100 . . . Volleys Fired 76 | 6 14 . 3 3 . 27 1 8 8 6 Largest 2 | 2 2 . 2 2 . 2 1 1 2 1 Hottest 60 | 60 60 . 40 40 . 43 20 30 46 33 Shots Fired 137 | 12 28 . 6 6 . 54 1 8 16 6 Gun 130 | 12 28 . 6 6 . 54 1 1 16 6 Cannon . | . . . . . . . . . . . Launcher 7 | . . . . . . . . 7 . . Special . | . . . . . . . . . . . Kinetic 117 | 6 21 . 6 6 . 54 1 1 16 6 Thermal 13 | 6 7 . . . . . . . . . Explosive 7 | . . . . . . . . 7 . . Electromagnetic . | . . . . . . . . . . . Robot Hit Streak 12 | 8 5 . 7 4 . 12 . 5 2 2 Robot Miss Streak 7 | 2 7 . 2 . . 2 1 . 3 1 Penetration Max . | . . . . . . . . . . . Secondary Targets 1 | . . . 1 . . . . . . . Max Gunslinging Chain 1 | . . . 1 . . . . . . . Shots Hit Robots 86 | 9 14 . 4 2 . 42 . 5 6 4 Core Hits 58 | 3 6 . 2 2 . 20 . 19 5 1 Critical Kills 1 | . . . . . . 1 . . . . Critical Parts Destroyed . | . . . . . . . . . . . Critical Strikes 1 | . . . . . . 1 . . . . Destroy 1 | . . . . . . 1 . . . . Melee Attacks . | . . . . . . . . . . . Impact . | . . . . . . . . . . . Slashing . | . . . . . . . . . . . Piercing . | . . . . . . . . . . . Sneak Attacks . | . . . . . . . . . . . Combat Hostiles . | . . . . . . . . . . . Follow-up Attacks . | . . . . . . . . . . . Damage Inflicted 1578 | 90 119 . 60 20 . 353 . 720 125 91 Guns 864 | 90 119 . 48 20 . 353 . 18 125 91 Cannons . | . . . . . . . . . . . Explosions 702 | . . . . . . . . 702 . . Melee . | . . . . . . . . . . . Ramming 12 | . . . 12 . . . . . . . Kinetic 783 | 33 95 . 48 20 . 353 . 18 125 91 Thermal 81 | 57 24 . . . . . . . . . Explosive 702 | . . . . . . . . 702 . . Electromagnetic . | . . . . . . . . . . . Impact . | . . . . . . . . . . . Slashing . | . . . . . . . . . . . Piercing . | . . . . . . . . . . . Highest Corruption 1 | . . . . . . . 1 . . . Average Corruption 1 | . . . . . . . 1 . . . Corruption Purged . | . . . . . . . . . . . Corruption Blocked . | . . . . . . . . . . . Overload Shots . | . . . . . . . . . . . Overflow Damage 22 | . . . . . . . . 22 . . Projectiles . | . . . . . . . . . . . Explosions 22 | . . . . . . . . 22 . . Melee . | . . . . . . . . . . . Knockbacks . | . . . . . . . . . . . Impact . | . . . . . . . . . . . Kinetic . | . . . . . . . . . . . Secondary . | . . . . . . . . . . . Self-Inflicted Damage . | . . . . . . . . . . . Shots . | . . . . . . . . . . . Rammed 1 | . . . . . . 1 . . . . Targets Rammed 4 | . . . 3 . . 1 . . . . Kicked 3 | . . . 3 . . . . . . . Crushed . | . . . . . . . . . . . Highest Temperature 202 | 20 20 . 41 8 . 12 44 9 . 202 Average Temperature 31 | 9 8 . 27 4 . 5 19 4 . 84 Received Heat Transfer 484 | . . . 90 . . 99 . 45 . 250 Effects 2 | . . . . . . . . . . 2 Interference 2 | . . . . . . . . . . 2 Siege Activations . | . . . . . . . . . . . Martial Activations . | . . . . . . . . . . . Shielding Activations . | . . . . . . . . . . . Robots Disrupted . | . . . . . . . . . . . Combat Hostiles . | . . . . . . . . . . . Robots Corrupted . | . . . . . . . . . . . Combat Hostiles . | . . . . . . . . . . . Parts Fried . | . . . . . . . . . . . Impact Corruptions . | . . . . . . . . . . . Robots Melted . | . . . . . . . . . . . Combat Hostiles . | . . . . . . . . . . . Parts Melted . | . . . . . . . . . . . Heat Transferred 175 | 125 50 . . . . . . . . . Parts Sabotaged . | . . . . . . . . . . . Parts Stolen . | . . . . . . . . . . . Parts Stripped . | . . . . . . . . . . . Power Chain Reactions . | . . . . . . . . . . . Alert | -11 -10 -10 -10 -9 -8 -8 -7 -6 -6 -6 ------- Run | Yrd Mat Min Exi Min Mat Sto Fac Fac Low Zio Maximum Alert Level 1 | . . . . . . 1 . . . . Low Security (%) 92 | 100 100 100 . 100 100 70 100 100 . . Level 1 7 | . . . . . . 29 . . . . Level 2 . | . . . . . . . . . . . Level 3 . | . . . . . . . . . . . Level 4 . | . . . . . . . . . . . Level 5 . | . . . . . . . . . . . High Security . | . . . . . . . . . . . Max Security . | . . . . . . . . . . . Peak Influence 385 | 5 63 . . . . 385 178 116 . . Initial 171 | . 3 . . . . . 171 . . . Average 61 | 1 19 . . . . 149 69 58 . . Influence Increases 1007 | 10 82 . 20 . . 680 49 116 50 . Destroy 0b10 Robot/C 540 | . 60 . 20 . . 320 20 80 40 . Destroy 0b10 Robot/NC 40 | 10 5 . . . . 15 5 5 . . Destroy Leader 132 | . 10 . . . . 102 . 10 10 . Allied During Kill 223 | . . . . . . 221 2 . . . Successful Hack 21 | . 7 . . . . 7 7 . . . Disable Machine 30 | . . . . . . 15 . 15 . . Destroy Structure 6 | . . . . . . . . 6 . . Partial Spotted 15 | . . . . . . . 15 . . . Influence Decreases 1007 | 5 87 . 10 10 . 303 426 50 75 41 Entered New Map 284 | . 2 . . 10 . . 206 . 25 41 Time Decay 523 | 5 85 . . . . 233 120 50 30 . Lost Part 40 | . . . 10 . . 10 . . 20 . Lost Ally 160 | . . . . . . 60 100 . . . Squads Dispatched 3 | . 1 . . . . 1 1 . . . Investigation 2 | . . . . . . 1 1 . . . Extermination . | . . . . . . . . . . . Reinforcement 1 | . 1 . . . . . . . . . Assault . | . . . . . . . . . . . Garrison . | . . . . . . . . . . . Intercept . | . . . . . . . . . . . Searches Triggered . | . . . . . . . . . . . Construction Impeded . | . . . . . . . . . . . Haulers Reinforced . | . . . . . . . . . . . Active Scanning Responses . | . . . . . . . . . . . Cargo Convoy Interrupts . | . . . . . . . . . . . Stealth | -11 -10 -10 -10 -9 -8 -8 -7 -6 -6 -6 --------- Run | Yrd Mat Min Exi Min Mat Sto Fac Fac Low Zio Distress Signals 2 | . . . . . . 2 . . . . Communications Jammed . | . . . . . . . . . . . Distress Signals . | . . . . . . . . . . . Times Spotted 51 | . 7 . 10 3 . 14 1 4 3 9 Peak Tracking Total 9 | . 3 . 9 1 . 3 1 4 3 8 Tactical Retreats 2 | . . . . 1 . . . . . 1 Traps | -11 -10 -10 -10 -9 -8 -8 -7 -6 -6 -6 ------- Run | Yrd Mat Min Exi Min Mat Sto Fac Fac Low Zio Traps Triggered 4 | . . . . . . 1 2 1 . . Indirectly . | . . . . . . . . . . . Trap Hack Attempts . | . . . . . . . . . . . Triggered . | . . . . . . . . . . . Disarmed . | . . . . . . . . . . . Reprogrammed . | . . . . . . . . . . . Reused . | . . . . . . . . . . . Traps Extracted . | . . . . . . . . . . . Installed . | . . . . . . . . . . . Triggered . | . . . . . . . . . . . Machines | -11 -10 -10 -10 -9 -8 -8 -7 -6 -6 -6 ---------- Run | Yrd Mat Min Exi Min Mat Sto Fac Fac Low Zio Machines Disabled 2 | . . . . . . 1 . 1 . . Max in Single Turn 1 | . . . . . . . . 1 . . Machines Repaired . | . . . . . . . . . . . Machines Dismantled . | . . . . . . . . . . . Machines Sabotaged . | . . . . . . . . . . . Overloaded Fab Kills . | . . . . . . . . . . . Hacking | -11 -10 -10 -10 -9 -8 -8 -7 -6 -6 -6 --------- Run | Yrd Mat Min Exi Min Mat Sto Fac Fac Low Zio Machines Accessed 17 | . 1 . 1 . . 8 5 2 . . Terminals 14 | . 1 . . . . 7 4 2 . . Fabricators . | . . . . . . . . . . . Repair Stations 1 | . . . . . . . 1 . . . Recycling Units 1 | . . . . . . 1 . . . . Scanalyzers . | . . . . . . . . . . . Garrison Access . | . . . . . . . . . . . Total Hacks 29 | . 1 . 1 . . 13 10 4 . . Successful 14 | . 1 . 1 . . 6 6 . . . Failed 15 | . . . . . . 7 4 4 . . Catastrophic 2 | . . . . . . 1 1 . . . Database Lockouts . | . . . . . . . . . . . Manual 1 | . . . 1 . . . . . . . Terminals 23 | . 1 . . . . 12 6 4 . . Fabricators . | . . . . . . . . . . . Repair Stations 4 | . . . . . . . 4 . . . Recycling Units 1 | . . . . . . 1 . . . . Scanalyzers . | . . . . . . . . . . . Garrison Access . | . . . . . . . . . . . Terminal Hacks 11 | . 1 . 1 . . 5 4 . . . Record 2 | . . . . . . . 2 . . . Open Door 3 | . . . . . . 3 . . . . Branch Access Points 1 | . 1 . . . . . . . . . Emergency Access Points 2 | . . . . . . . 2 . . . Zone Layout 2 | . . . . . . 2 . . . . Proto ID Catalog 1 | . . . 1 . . . . . . . Fabricator Hacks . | . . . . . . . . . . . Repair Station Hacks 2 | . . . . . . . 2 . . . Scan Component 1 | . . . . . . . 1 . . . Repair 1 | . . . . . . . 1 . . . Recycling Unit Hacks 1 | . . . . . . 1 . . . . Retrieve Components 1 | . . . . . . 1 . . . . Scanalyzer . | . . . . . . . . . . . Garrison Access Hacks . | . . . . . . . . . . . Unauthorized Hacks . | . . . . . . . . . . . Terminals . | . . . . . . . . . . . Fabricators . | . . . . . . . . . . . Repair Stations . | . . . . . . . . . . . Recycling Units . | . . . . . . . . . . . Scanalyzers . | . . . . . . . . . . . Garrison Access . | . . . . . . . . . . . Data Cores Recovered 1 | . . . . . . . 1 . . . Used . | . . . . . . . . . . . Hacking Detections 11 | . 1 . . . . 4 4 2 . . Full Trace Events 2 | . . . . . . 1 1 . . . Feedback Events . | . . . . . . . . . . . Feedback Blocked . | . . . . . . . . . . . Robot Schematics Acquired . | . . . . . . . . . . . Robots Built . | . . . . . . . . . . . Authchips . | . . . . . . . . . . . Time . | . . . . . . . . . . . Total Robot Build Rating . | . . . . . . . . . . . Part Schematics Acquired . | . . . . . . . . . . . Parts Built . | . . . . . . . . . . . Authchips . | . . . . . . . . . . . Time . | . . . . . . . . . . . Total Part Build Rating . | . . . . . . . . . . . Part Studies Acquired . | . . . . . . . . . . . Parts Repaired 1 | . . . . . . . 1 . . . Time 32 | . . . . . . . 32 . . . Parts Recycled . | . . . . . . . . . . . Recycled Matter . | . . . . . . . . . . . Retrieved Matter . | . . . . . . . . . . . Retrieved Components 2 | . . . . . . 2 . . . . Parts Scanalyzed . | . . . . . . . . . . . Part Schematics Acquired . | . . . . . . . . . . . Parts Damaged . | . . . . . . . . . . . Bothacking | -11 -10 -10 -10 -9 -8 -8 -7 -6 -6 -6 ------------ Run | Yrd Mat Min Exi Min Mat Sto Fac Fac Low Zio Used RIF Installer . | . . . . . . . . . . . Robots Hacked . | . . . . . . . . . . . Non-combat . | . . . . . . . . . . . Combat . | . . . . . . . . . . . Robot Hacks Applied . | . . . . . . . . . . . Relay Couplers Released . | . . . . . . . . . . . Fabnet Peak Effective % . | . . . . . . . . . . . Robots Rewired 1 | . . . . . . 1 . . . . Allies Hacked . | . . . . . . . . . . . Hacks Repelled . | . . . . . . . . . . . Allies | -11 -10 -10 -10 -9 -8 -8 -7 -6 -6 -6 -------- Run | Yrd Mat Min Exi Min Mat Sto Fac Fac Low Zio Total Allies 10 | . . . . . . 10 . . . . Largest Group 10 | . . . . . . 10 7 . . . Highest-Rated Group 173 | . . . . . . 173 125 . . . Highest-Rated Ally 29 | . . . . . . 29 29 . . . Total Orders . | . . . . . . . . . . . Ally Attacks 86 | . . . . . . 72 14 . . . Total Damage 1028 | . . . . . . 850 178 . . . Kills 17 | . . . . . . 14 3 . . . Allies Corrupted . | . . . . . . . . . . . Allies Melted . | . . . . . . . . . . . Intel | -11 -10 -10 -10 -9 -8 -8 -7 -6 -6 -6 ------- Run | Yrd Mat Min Exi Min Mat Sto Fac Fac Low Zio Active Infowar (turns) 3174 | 16 275 130 576 101 139 518 419 141 72 787 Optics 1415 | . . . . . . . 415 141 72 787 Terrain 1880 | 16 275 6 . . 139 518 133 . 6 787 Seismic 801 | . . 124 576 101 . . . . . . ECM 1 | . . . . . 1 . . . . . Robot Analysis Total . | . . . . . . . . . . . Derelict Logs Recovered 3 | . . . . 1 . . . . . 2 Drone Launches . | . . . . . . . . . . . Drone Recoveries . | . . . . . . . . . . . Exploration | -11 -10 -10 -10 -9 -8 -8 -7 -6 -6 -6 ------------- Run | Yrd Mat Min Exi Min Mat Sto Fac Fac Low Zio Turns Passed 3384 | 56 275 130 576 270 140 518 419 141 72 787 Spaces Moved 3628 | 44 207 102 532 213 145 381 673 362 163 806 Core 56 | 36 20 . . . . . . . . . Treads . | . . . . . . . . . . . Legs 160 | 8 . . 113 . 35 4 . . . . Wheels . | . . . . . . . . . . . Hover 425 | . . . . . 75 350 . . . . Flight 2987 | . 187 102 419 213 35 27 673 362 163 806 Fastest Speed 22 | 50 37 117 45 117 56 31 22 25 25 22 Average Speed 74 | 62 106 117 102 117 89 86 26 25 25 94 Slowest Speed 277 | 120 117 117 197 117 130 277 34 25 26 109 Overloaded Moves 107 | . . . 107 . . . . . . . Propulsion Burnouts . | . . . . . . . . . . . Robots Hopped 6 | . 1 . . . . . 4 1 . . Potential Cave-ins . | . . . . . . . . . . . Cave-ins Triggered . | . . . . . . . . . . . Exploration Rate (%) 37 | 3 34 27 92 47 13 60 19 9 22 88 Regions Visited 10 Branch Regions 6 Pre-discovered Areas 2 | . . . . . . . . . . 2 Known Exits Taken 2 | . 1 . . . 1 . . . . . Unknown Exits Taken 8 | 1 . 1 1 1 . 1 1 1 1 . Scrap Searched 10 | . . 2 . 1 . . . . 3 4 Spaces Dug . | . . . . . . . . . . . Terrain Destroyed 10 | . . . . . . . . 10 . . Melee . | . . . . . . . . . . . Projectile . | . . . . . . . . . . . AOE 10 | . . . . . . . . 10 . . Terrain Rammed . | . . . . . . . . . . . Walls Destroyed . | . . . . . . . . . . . Machines Disabled . | . . . . . . . . . . . Actions | -11 -10 -10 -10 -9 -8 -8 -7 -6 -6 -6 --------- Run | Yrd Mat Min Exi Min Mat Sto Fac Fac Low Zio Total 4184 | 60 235 112 556 229 154 526 910 401 176 825 Wait 277 | . 4 . 7 4 . 65 173 24 . . Move 3606 | 43 204 101 531 212 144 380 664 359 162 806 Hop 6 | . 1 . . . . . 4 1 . . Pick Up 46 | 6 4 4 . 2 2 8 12 2 2 4 Fast Attach 30 | 2 4 . 6 . 3 5 6 2 1 1 Attach 16 | 3 1 . . 3 3 1 3 2 . . Detach 2 | . 1 . . . . 1 . . . . Swap 33 | . . 4 . 2 . 8 12 2 2 3 Drop 58 | . 2 3 6 3 2 15 20 1 1 5 Fire 76 | 6 14 . 3 3 . 27 1 8 8 6 Melee . | . . . . . . . . . . . Ram 1 | . . . . . . 1 . . . . Kick 3 | . . . 3 . . . . . . . Crush . | . . . . . . . . . . . Escape Stasis 27 | . . . . . . 12 15 . . . Rewire 3 | . . . . . . 3 . . . . Trap . | . . . . . . . . . . . Miscellaneous . | . . . . . . . . . . . Route ------- -11/Scrapyard -10/Materials (discovered 2 exits: *Min x2) -10/Mines -10/Exiles (discovered 2 exits: [*Min x2]) -9/Mines -8/Materials -8/Storage -7/Factory -6/Factory -6/Lower Caves -6/Zion (discovered 1 exit: [*Pro]) History --------- Turn | Location | Event 9 | -11/Scrapyard | Discovered new exit (range 14) 57 | -11/Scrapyard | Entered Materials 187 | -10/Materials | Identified exit to Mines 332 | -10/Materials | Entered Mines 335 | -10/Mines | Met a Derelict bent on vengeance 391 | -10/Mines | Found a hidden stash of uninstalled traps 402 | -10/Mines | Build established: Scavenger-Mutant 457 | -10/Mines | Deemed a non-threat by the Exiles lab entrance 457 | -10/Mines | Discovered new exit (range 5) 462 | -10/Mines | Entered Exiles 480 | -10/Exiles | Discovered new exit (range 15) 509 | -10/Exiles | Met 8R-AWN 529 | -10/Exiles | Met EX-HEX 598 | -10/Exiles | Met EX-DEC 616 | -10/Exiles | Visited The Gauntlet 818 | -10/Exiles | Discovered new exit (range 10) 898 | -10/Exiles | Met EX-BIN 914 | -10/Exiles | Aligned with FarCom system 915 | -10/Exiles | Given EX-Vault access code 943 | -10/Exiles | Opened EX-Vault 950 | -10/Exiles | Found Prototype Special Weapon 950 | -10/Exiles | Identified Field Lobotomy Kit 958 | -10/Exiles | Found Prototype Leg 958 | -10/Exiles | Identified Potential Leg 961 | -10/Exiles | Found Potential Leg 971 | -10/Exiles | Found Prototype Energy Cannon 971 | -10/Exiles | Identified YOLO Cannon 992 | -10/Exiles | Exiles lab attacked by MAIN.C 1038 | -10/Exiles | Left Exiles lab with Potential Leg 1038 | -10/Exiles | Entered Mines 1057 | -9/Mines | Learned 2 Materials zone layouts 1167 | -9/Mines | Assembled infested the area 1172 | -9/Mines | Assisted by a Guerilla fighting off Assembled 1292 | -9/Mines | Discovered new exit (range 6) 1308 | -9/Mines | Entered Materials 1308 | -8/Materials | Evolved 4 slots: Propulsion x2, Utility x2 1309 | -8/Materials | Identified exit to Storage 1448 | -8/Materials | Entered Storage 1564 | -8/Storage | Assisted by bots powering up and referring to "LRC-V3" 1914 | -8/Storage | Discovered new exit (range 15) 1966 | -8/Storage | Entered Factory 1966 | -7/Factory | Accompanied by 7 allies 1966 | -7/Factory | Evolved 2 slots: Propulsion x2 2170 | -7/Factory | Repaired Hvy. Assault Rifle 2222 | -7/Factory | Discovered new exit (range 5) 2385 | -7/Factory | Entered another Factory area 2385 | -6/Factory | Evolved 2 slots: Power x1, Utility x1 2467 | -6/Factory | Discovered new exit (range 5) 2476 | -6/Factory | Build established: Scavenger-Scout 2526 | -6/Factory | Entered Lower Caves 2582 | -6/Lower Caves | Spotted B-75 Beast 2596 | -6/Lower Caves | A Derelict revealed a hidden shortcut to a safe place 2598 | -6/Lower Caves | Entered Zion 2604 | -6/Zion | Learned Factory emergency access door positions 2642 | -6/Zion | Learned location of Warlord (-4) 2651 | -6/Zion | Discovered new exit (range 13) 2713 | -6/Zion | Given the Hacking Drone Bay 2713 | -6/Zion | Found Prototype Device 2846 | -6/Zion | Visited the Megawrench Repair Shop 2846 | -6/Zion | Megawrench repaired 10 parts 2899 | -6/Zion | Build established: Scavenger-Mutant 3303 | -6/Zion | Rebuked by Imprinter 3321 | -6/Zion | Attempted to imprint without authorization 3321 | -6/Zion | Attacked by Zionites 3385 | -6/Zion | Self-destructed Last Messages --------------- 03334_ Memory Banks disabled. 03344_ 27-48S(M) shuts down. 03344_ Cesium-ion Thruster destroyed. 03346_ VTOL Module destroyed. 03347_ Critical hit (Burn: +80). 03355_ 89-1SJ(c) calibrates the Conduit Teleporter. A strange signal echoes through Zion. 03376_ Lgt. Deuterium Engine destroyed. 03376_ Lgt. Fission Core destroyed. 03377_ EV-SVC(z) emerges from the Twisted Machinery. 03379_ LQ-WSC(z) pulls a Mak. Shrapnel Gun out of the Twisted Machinery. 03379_ 74-KP0(z) pulls a Mak. Axe out of the Twisted Machinery. 03380_ Cesium-ion Thruster destroyed. 03384_ 9X-OPH(z) heat damages Lgt. Fission Core. 03384_ 9X-OPH(z) overheating. 03384_ Critical hit (Burn: +37). Map ----- +----------------------------------------------------+ | ?????????#"!"" " "" """" "" """"""""" | | ?????????#[[ "## "" "" """???"#" | | ?????????###### "" """ """?????? " | | ????????????#?## """"" """ ""##?????"""" | | ??#??#?????????#" """"" """ """#????????? | | ?????#?????????##" """" "" ""?????????? | | ????????????##??#""## """ " ""#????????? | | ?#?????????#??###### """" "" ""#????????? | | ?????????????????#?#" """ "" ""????????? | | ??#????#?????????###"" " """ ""#????????? | | ?????????????????#?#""" """ """"????????? | | ????#????###???????#""" "" """#????????? | | ???#######"##########""" ""#?????????? | | ???""#""""""#"##"##"#"""" ""##????????? | | #####"""""""""""""""""""" """#????????? | | """ #""" """"""" """ ""#??#????? | | """ #""" "" "" "" """"""????? | | #""" "" """ """" ""????? | | ##"" """"""z "" """ """ "????? | | """""##" """ "#" "" "????? | | """####" "#" "#" z"" """?????? | | ""##??#"" """"" """ " "#??????? | | ###" "#"#??#"""" """" "" ""#??????? | | #"" "#######""" "" """#??????? | | """ ###" """""""""" """"##?#???? | | """ #""" """"""""" @ """##????### | | #####""" """" "" z """"#????#"" | | #####"## """"" """" ""##????# | | #"""#### ###"" ""#"" zz ""##?###"# | | " #?#"" ""#"" "" """#?#"""" | | " #?#"" "## " """###" " | | " #?#"" """# ## ## " """#""" | | # #### #?##" """""# # # " m"""""" | | # #??######?"""""""### """ | | # ######????########?# """ | | """"""?????????????# """ | | " "######????##??????# # # """""" | | " " " #?????#???#??# ## ## """ | | """ #????????????# " | | " " #?????#???#??####"" "" "" "" | | """""#?"??"???????##"""" """ """ """ """" | | """" #??????#??##?#"" """"""""" """ """" | | "" "" ""#?"??????##"##""" ""#"##""" "#" | | "" "" " #"???????#""""""" """"#""""""" ""# | | "" """""" #????????#" """"" """" "" | | """"""""""#????????#" """" ""# | | """"" #????????#" """" """"" """ | | """""""" #????????#"""#"" """"""" """ | | """" """""#???????#""""#"" """#"""" "" | | """" "" ?????????##"####" "" """##"#"" " | +----------------------------------------------------+ Best States ------------- Heat Dissipation 37 Energy Generation 27 Energy Capacity 500 Matter Stores 300 Matter Capacity 300 Sight Range 18 Terrain Scan Range 16 Terrain Scan Density 10 Armor Coverage 150 Evasion (%) 66 Targeting Accuracy 5 Core Analysis 6 Authchip Count 1 Item Schematics ----------------- None Robot Schematics ------------------ None Fabricated ------------ Nothing Repaired ---------- Hvy. Assault Rifle | 65% | -7/Factory Studied --------- None Alien Tech Used ----------------- None Achievements -------------- A New Friend Can't Catch Me Challenges ------------ None Game ------ Seed HackingPotentialProjector Manual? 0 Play Time 00:58:28 Cumulative 32.1 hours Start 2026.07.23 @ 15:21:22 End 2026.07.23 @ 16:23:20 Sessions 1 Manual Loads 0 Difficulty Rogue Special Mode None Game No. 55 Rogue 55 Adventurer 0 Explorer 0 Win Type - Total 0 Types 0/0/0/0/0/0/0/0/0/0 Lore% 17 Gallery% 28 Achievement% 21 Wizard Run 0 Options --------- Layout 1 ASCII 0 Keyboard 0 Movement Numpad Keybinds 0 Fullscreen 1 Font 24/Smallcaps Map View 50x35 Zoom Use 1% Tactical HUD 1 Map Filters NONE Filters NONE Steam 1 RUN: 95e4aa8c-fc60-4e15-8bff-776e04018152